bitfinex-derivatives/quotes_BTCF0:USTF0_20250324
["timestamp","ask_amount","ask_price","bid_price","bid_amount"]
[1742836022828,0.10184,88200.0,88199.0,0.61757425]
[1742836023029,0.10184,88200.0,88199.0,0.61857425]
[1742836023435,0.10184,88200.0,88199.0,0.62857425]
[1742836023626,0.1004,88200.0,88199.0,1.04177425]
[1742836023928,0.1004,88200.0,88199.0,1.04277425]
[1742836024231,0.1004,88200.0,88199.0,1.40357425]
[1742836024634,0.2137764,88200.0,88199.0,1.36167425]
[1742836025130,0.10184,88200.0,88199.0,1.36167425]
[1742836025339,0.1004,88200.0,88199.0,1.36167425]
[1742836025628,0.2137764,88200.0,88199.0,1.35167425]
[1742836025931,0.2137764,88200.0,88199.0,1.23829655]
[1742836025932,0.2152164,88200.0,88199.0,1.23829655]
[1742836026231,0.2921164,88200.0,88199.0,1.35167425]
[1742836026418,0.2921164,88200.0,88199.0,0.99087425]
[1742836026419,0.2906764,88200.0,88199.0,0.99087425]
[1742836026625,0.2921164,88200.0,88199.0,0.99087425]
[1742836026820,0.17874,88200.0,88199.0,0.99087425]
[1742836027026,0.1004,88200.0,88199.0,1.03087425]
[1742836027436,0.10196001,88200.0,88199.0,1.02687425]
[1742836027625,0.1004,88200.0,88199.0,1.03987425]
[1742836027831,0.10192,88200.0,88199.0,1.03987425]
[1742836028323,0.1004,88200.0,88199.0,1.03987425]
[1742836028728,0.10184,88200.0,88199.0,1.03987425]
[1742836028934,0.1004,88200.0,88199.0,1.03987425]
[1742836029236,0.1004,88200.0,88199.0,0.99987425]
[1742836029621,0.1822,88200.0,88199.0,0.58667425]
[1742836030028,0.18372,88200.0,88199.0,0.58667425]
[1742836030333,0.18372,88200.0,88199.0,0.58367425]
[1742836030529,0.18372,88200.0,88199.0,0.58667425]
[1742836031028,0.18372,88200.0,88199.0,0.58367425]
[1742836031222,0.18372,88200.0,88199.0,0.58667425]
[1742836032129,0.1822,88200.0,88199.0,0.58667425]
[1742836032331,0.18284,88200.0,88199.0,0.58667425]
[1742836032734,0.1822,88200.0,88199.0,0.58667425]
[1742836033131,0.18364,88200.0,88199.0,0.58667425]
[1742836033837,0.1822,88200.0,88199.0,0.58667425]
[1742836034423,0.1822,88200.0,88199.0,0.69999425]
[1742836034834,0.18364,88200.0,88199.0,0.69999425]
[1742836035334,0.0566713,88227.0,88209.0,0.0566818]
[1742836035633,0.0391,88215.0,88214.0,0.1133584]
[1742836035823,0.0775,88215.0,88214.0,0.5682384]
[1742836037122,0.0775,88215.0,88214.0,0.45488]
[1742836037326,0.0775,88215.0,88214.0,0.5682384]
[1742836038730,0.0384,88215.0,88214.0,0.6076384]
[1742836039735,0.0764,88215.0,88214.0,0.6076384]
[1742836040128,0.0764,88215.0,88214.0,0.5682384]
[1742836040729,1e-08,88216.0,88215.0,0.1133571]
[1742836040929,1e-08,88216.0,88215.0,0.2039371]
[1742836042537,1e-08,88216.0,88215.0,0.2639371]
[1742836047232,1e-08,88216.0,88215.0,0.6771371]
[1742836053240,1e-08,88216.0,88215.0,0.7904171]
[1742836054147,0.04010001,88216.0,88215.0,0.7904171]
[1742836054740,0.04010001,88216.0,88215.0,0.6771371]
[1742836054949,0.04010001,88216.0,88215.0,0.7904171]
[1742836055440,0.04010001,88216.0,88215.0,0.3772171]
[1742836056647,0.15345581,88216.0,88215.0,0.2639371]
[1742836056847,0.04010001,88216.0,88215.0,0.3772171]
[1742836057445,0.15345581,88216.0,88215.0,0.07188]
[1742836057645,0.26681457,88216.0,88215.0,0.01188]
[1742836057847,0.30571457,88216.0,88215.0,0.01188]
[1742836058746,0.30571457,88216.0,88206.0,0.00017006]
[1742836058747,0.1133674,88207.0,88206.0,0.00017006]
[1742836058935,0.1133699,88205.0,88204.0,0.20375715]
[1742836059248,0.1133699,88205.0,88204.0,0.20511715]
[1742836059451,0.30574866,88205.0,88204.0,0.20511715]
[1742836059839,0.30574866,88205.0,88200.0,0.2716762]
[1742836059840,0.1133751,88201.0,88200.0,0.2716762]
[1742836060140,0.4751751,88201.0,88200.0,0.2725962]
[1742836060543,0.588548,88201.0,88200.0,0.2725962]
[1742836060935,0.59698337,88201.0,88200.0,0.2725962]
[1742836061436,0.59698337,88201.0,88200.0,0.2745962]
[1742836061744,0.59698337,88201.0,88200.0,0.2775962]
[1742836062938,0.59698337,88201.0,88200.0,0.00592]
[1742836063148,0.59698337,88201.0,88200.0,0.005]
[1742836063347,0.63028337,88201.0,88200.0,0.005]
[1742836063844,0.63028337,88201.0,88200.0,0.004]
[1742836064048,0.621848,88201.0,88200.0,0.004]
[1742836064437,0.1133879,88191.0,88190.0,0.0399]
[1742836064642,0.1143879,88191.0,88190.0,0.05082]
[1742836064845,0.1143879,88191.0,88190.0,0.08822]
[1742836065241,0.1143879,88191.0,88190.0,0.01092]
[1742836065242,0.58857879,88191.0,88190.0,0.01092]
[1742836065448,0.62519089,88191.0,88177.0,0.3608]
[1742836065746,0.62519089,88191.0,88176.0,0.0399]
[1742836065747,0.1134059,88177.0,88176.0,0.0399]
[1742836065944,0.1134059,88177.0,88176.0,0.0999]
[1742836066138,0.1134059,88177.0,88176.0,0.2133072]
[1742836066338,0.1134059,88177.0,88176.0,0.2507072]
[1742836066547,0.26010515,88177.0,88176.0,0.2507072]
[1742836066939,0.11339925,88177.0,88176.0,0.6115072]
[1742836067246,0.0566991,88183.0,88176.0,0.4981]
[1742836067438,0.1134059,88177.0,88176.0,0.4981]
[1742836067749,0.1134059,88177.0,88176.0,0.4607]
[1742836068044,0.2268148,88177.0,88176.0,0.4607]
[1742836068247,0.2268148,88177.0,88176.0,0.4647]
[1742836068652,0.2268148,88177.0,88176.0,0.4697]
[1742836069546,0.2268148,88177.0,88176.0,0.5071]
[1742836070348,0.2274548,88177.0,88176.0,0.5071]
[1742836070543,0.2274548,88177.0,88176.0,0.50774]
[1742836070952,0.3407748,88177.0,88176.0,0.50774]
[1742836071252,0.3407748,88177.0,88176.0,0.50274]
[1742836071441,0.3407748,88177.0,88176.0,0.50774]
[1742836072554,0.2274548,88177.0,88176.0,0.6211472]
[1742836072738,0.2274548,88177.0,88176.0,0.6621472]
[1742836073437,0.2274548,88177.0,88176.0,0.54874]
[1742836073641,0.2274548,88177.0,88176.0,0.14694]
[1742836073843,0.2274548,88177.0,88176.0,0.0863]
[1742836074246,0.2988548,88177.0,88176.0,0.0489]
[1742836074948,0.31013559,88177.0,88176.0,0.0489]
[1742836076950,0.31013559,88177.0,88176.0,0.0868]
[1742836079451,0.1134278,88160.0,88159.0,0.15218072]
[1742836079655,0.1140678,88160.0,88159.0,0.29282072]
[1742836079845,0.1140678,88160.0,88159.0,0.40624842]
[1742836080155,0.22749857,88160.0,88159.0,0.40624842]
[1742836080350,0.11332,88176.0,88170.0,0.0567056]
[1742836080651,0.1134137,88172.0,88171.0,0.0403]
[1742836080855,0.1142537,88172.0,88171.0,0.05243917]
[1742836081043,0.22766903,88172.0,88171.0,0.05243917]
[1742836081240,0.28437523,88172.0,88171.0,0.16584897]
[1742836081641,0.28437523,88172.0,88171.0,0.17584897]
[1742836082051,0.28437523,88172.0,88171.0,0.17684897]
[1742836082450,0.28437523,88172.0,88171.0,0.25364897]
[1742836082647,0.28437523,88172.0,88171.0,0.13923917]
[1742836083246,0.28437523,88172.0,88171.0,0.12802]
[1742836083853,0.28437523,88172.0,88171.0,0.08772]
[1742836084151,0.28437523,88172.0,88171.0,0.0768]
[1742836084152,0.36187523,88172.0,88171.0,0.0768]
[1742836084949,0.36287523,88172.0,88171.0,0.0768]
[1742836085657,0.36187523,88172.0,88171.0,0.0768]
[1742836085957,0.36587523,88172.0,88171.0,0.0768]
[1742836088448,0.36387523,88172.0,88171.0,0.0768]
[1742836088648,0.36587523,88172.0,88171.0,0.0768]
[1742836089646,0.36387523,88172.0,88171.0,0.0768]
[1742836089847,0.36587523,88172.0,88171.0,0.0768]
[1742836091647,0.47923523,88172.0,88171.0,0.0768]
[1742836092252,0.47523523,88172.0,88171.0,0.0768]
[1742836092454,0.48023523,88172.0,88171.0,0.0768]
[1742836093247,0.48123523,88172.0,88171.0,0.0768]
[1742836094553,0.48023523,88172.0,88171.0,0.0768]
[1742836095253,0.48123523,88172.0,88171.0,0.0768]
[1742836100157,0.48123523,88172.0,88162.0,0.0373]
[1742836100158,0.1134239,88163.0,88162.0,0.0373]
[1742836100363,0.1134278,88160.0,88159.0,0.00045372]
[1742836100566,0.11402781,88160.0,88159.0,0.00045372]
[1742836100860,0.30434314,88160.0,88159.0,0.00045372]
[1742836101060,0.3155409,88160.0,88159.0,0.00045372]
[1742836102963,0.22744314,88160.0,88159.0,0.00045372]
[1742836103563,0.22744314,88160.0,88159.0,0.01495087]
[1742836103763,0.23144314,88160.0,88159.0,0.01495087]
[1742836104063,0.23144314,88160.0,88159.0,0.09017087]
[1742836104262,0.31304314,88160.0,88159.0,0.08925087]
[1742836104661,0.31504314,88160.0,88159.0,0.07475372]
[1742836105160,0.31304314,88160.0,88159.0,0.07475372]
[1742836105567,0.23144314,88160.0,88159.0,0.07475372]
[1742836105761,0.23144314,88160.0,88159.0,0.07559372]
[1742836106066,0.23344314,88160.0,88159.0,0.07475372]
[1742836106366,0.23444314,88160.0,88159.0,0.07475372]
[1742836107164,0.23144314,88160.0,88159.0,0.07475372]
[1742836107362,0.23344314,88160.0,88159.0,0.07475372]
[1742836107665,0.22944314,88160.0,88159.0,0.07475372]
[1742836107867,0.30704314,88160.0,88159.0,0.07475372]
[1742836108267,0.23144314,88160.0,88159.0,0.07475372]
[1742836109563,0.22944314,88160.0,88159.0,0.07475372]
[1742836109753,0.34480314,88160.0,88159.0,0.07475372]
[1742836111263,0.34280314,88160.0,88159.0,0.07475372]
[1742836111461,0.34480314,88160.0,88159.0,0.07475372]
[1742836112163,0.34480314,88160.0,88159.0,0.07559372]
[1742836112358,0.34480314,88160.0,88159.0,0.07475372]
[1742836112565,0.34280314,88160.0,88159.0,0.07475372]
[1742836112760,0.34480314,88160.0,88159.0,0.07475372]
[1742836112965,0.34480314,88160.0,88159.0,0.07559372]
[1742836113468,0.34480314,88160.0,88159.0,0.07475372]
[1742836114456,0.38120314,88160.0,88159.0,0.07475372]
[1742836114661,0.34480314,88160.0,88159.0,0.07475372]
[1742836115074,0.34280314,88160.0,88159.0,0.07475372]
[1742836115462,0.34480314,88160.0,88159.0,0.07475372]
[1742836115773,0.42090314,88160.0,88159.0,0.07475372]
[1742836116172,0.1134381,88152.0,88151.0,0.00017006]
[1742836116365,0.11403811,88152.0,88151.0,0.01017006]
[1742836116770,0.19233811,88152.0,88151.0,0.01017006]
[1742836116971,0.3140715,88152.0,88151.0,0.01017006]
[1742836117767,0.3140715,88152.0,88151.0,0.00017006]
[1742836118169,0.3532715,88152.0,88151.0,0.00017006]
[1742836118369,0.3532715,88152.0,88151.0,6e-08]
[1742836118965,0.3572715,88152.0,88151.0,6e-08]
[1742836121773,0.3180715,88152.0,88151.0,6e-08]
[1742836125277,0.23146888,88152.0,88151.0,6e-08]
[1742836125481,0.23146888,88152.0,88151.0,0.11870006]
[1742836125775,0.23146888,88152.0,88151.0,0.59385946]
[1742836126173,0.23146888,88152.0,88151.0,0.48042006]
[1742836126578,0.22946888,88152.0,88151.0,0.49489792]
[1742836127278,0.22946888,88152.0,88151.0,0.50489792]
[1742836128580,0.22946888,88152.0,88151.0,0.14409792]
[1742836129080,0.30526888,88152.0,88151.0,0.14417792]
[1742836129277,0.30526888,88152.0,88151.0,0.14509792]
[1742836129466,0.22946888,88152.0,88151.0,0.13062006]
[1742836129667,0.22746888,88152.0,88151.0,0.13062006]
[1742836129872,0.22746888,88152.0,88151.0,0.12962006]
[1742836130174,0.22946888,88152.0,88151.0,0.12962006]
[1742836130382,0.23046888,88152.0,88151.0,0.12962006]
[1742836131488,0.22946888,88152.0,88151.0,0.12962006]
[1742836132186,0.22746888,88152.0,88151.0,0.13062006]
[1742836133477,0.22746888,88152.0,88151.0,0.12962006]
[1742836133680,0.22746888,88152.0,88151.0,0.24305946]
[1742836134185,0.22746888,88152.0,88151.0,0.12962006]
[1742836136977,0.30426888,88152.0,88151.0,0.12962006]
[1742836137371,0.30426888,88152.0,88151.0,0.24305946]
[1742836137372,0.22746888,88152.0,88151.0,0.24305946]
[1742836137772,0.22746888,88152.0,88151.0,0.12962006]
[1742836137971,0.22846888,88152.0,88151.0,0.12962006]
[1742836139582,0.22746888,88152.0,88151.0,0.12962006]
[1742836140379,0.22746888,88152.0,88151.0,0.24305946]
[1742836140586,0.22746888,88152.0,88151.0,0.12962006]
[1742836140986,0.22746888,88152.0,88151.0,0.24305946]
[1742836141490,0.22746888,88152.0,88151.0,0.12962006]
[1742836141891,0.22746888,88152.0,88151.0,0.24305946]
[1742836142189,0.22746888,88152.0,88151.0,0.12962006]
[1742836142384,0.22846888,88152.0,88151.0,0.12962006]
[1742836142775,0.22846888,88152.0,88151.0,0.24305946]
[1742836142982,0.26846888,88152.0,88151.0,0.24305946]
[1742836143181,0.22746888,88152.0,88151.0,0.24305946]
[1742836144691,0.22746888,88152.0,88151.0,0.25305946]
[1742836146493,0.22746888,88152.0,88151.0,0.24305946]
[1742836147089,0.22746888,88152.0,88151.0,0.25751885]
[1742836147288,0.22746888,88152.0,88151.0,0.14407945]
[1742836147490,0.22746888,88152.0,88151.0,0.25751885]
[1742836147699,0.3612,88184.0,88151.0,0.20407945]
[1742836147995,0.1701317,88169.0,88168.0,0.0567069]
[1742836148196,0.17073171,88169.0,88168.0,0.0581069]
[1742836148497,0.17073171,88169.0,88168.0,0.00132]
[1742836148797,0.1134188,88167.0,88166.0,0.0735]
[1742836149096,0.1147788,88167.0,88166.0,0.09933797]
[1742836149288,0.1545788,88167.0,88166.0,0.09933797]
[1742836149492,0.1940788,88167.0,88166.0,0.09933797]
[1742836149686,0.22820056,88167.0,88166.0,0.20976016]
[1742836150598,0.23120056,88167.0,88166.0,0.22423873]
[1742836150989,0.23120056,88167.0,88166.0,0.26103873]
[1742836151283,0.23520056,88167.0,88166.0,0.26103873]
[1742836152100,0.23520056,88167.0,88166.0,0.24656016]
[1742836152298,1e-08,88167.0,88166.0,0.24656016]
[1742836152594,0.11341881,88167.0,88166.0,0.13314006]
[1742836152801,0.11341881,88167.0,88166.0,0.2350801]
[1742836153893,0.11341881,88167.0,88166.0,0.2466443]
[1742836154294,1e-08,88167.0,88166.0,0.2466443]
[1742836155700,0.11341881,88167.0,88166.0,0.2466443]
[1742836156297,1e-08,88167.0,88166.0,0.2466443]
[1742836159901,1e-08,88167.0,88166.0,0.4066443]
[1742836160205,1e-08,88167.0,88166.0,0.42185676]
[1742836160703,1e-08,88167.0,88166.0,0.27185676]
[1742836161202,1e-08,88167.0,88166.0,0.2566443]
[1742836162597,1e-08,88167.0,88166.0,0.4066443]
[1742836162805,1e-08,88167.0,88166.0,0.2566443]
[1742836169203,1e-08,88167.0,88166.0,0.27172696]
[1742836175218,1e-08,88167.0,88166.0,0.2566443]
[1742836175513,1e-08,88167.0,88166.0,0.27189806]
[1742836176110,1e-08,88167.0,88166.0,0.2566443]
[1742836176527,1e-08,88167.0,88166.0,0.27189059]
[1742836178231,0.0377,88178.0,88176.0,0.1134072]
[1742836178534,0.03937016,88177.0,88176.0,0.9900872]
[1742836178832,0.03937016,88177.0,88176.0,1.0655872]
[1742836179525,0.07667016,88177.0,88176.0,1.0655872]
[1742836179726,0.0004,88200.0,88176.0,0.95218]
[1742836180024,0.0373,88188.0,88187.0,0.1133931]
[1742836180228,0.0373,88188.0,88187.0,0.7199931]
[1742836180538,0.0373,88188.0,88187.0,0.73842399]
[1742836181528,0.0423,88188.0,88187.0,0.73842399]
[1742836181727,0.0787,88188.0,88187.0,0.73842399]
[1742836182437,0.0817,88188.0,88187.0,0.73842399]
[1742836184441,0.0817,88188.0,88187.0,0.75359574]
[1742836185341,0.0817,88188.0,88187.0,0.73842399]
[1742836186230,0.0817,88188.0,88187.0,0.70172399]
[1742836190532,0.1950918,88188.0,88187.0,0.70172399]
[1742836190838,0.0817,88188.0,88187.0,0.70172399]
[1742836192232,0.1950918,88188.0,88187.0,0.70172399]
[1742836192433,0.1950918,88188.0,88187.0,0.58844399]
[1742836192633,0.1950918,88188.0,88187.0,0.50434399]
[1742836193535,0.1950918,88188.0,88187.0,0.57824399]
[1742836193836,0.1920918,88188.0,88187.0,0.69148399]
[1742836194031,0.1920918,88188.0,88187.0,0.69248399]
[1742836194239,0.1870918,88188.0,88187.0,0.69348399]
[1742836194742,0.1870918,88188.0,88187.0,0.69148399]
[1742836194941,0.1870918,88188.0,88187.0,0.69348399]
[1742836197238,0.1870918,88188.0,88187.0,0.50634399]
[1742836197440,0.1870918,88188.0,88187.0,0.57744399]
[1742836199338,0.1870918,88188.0,88187.0,0.59253813]
[1742836199534,0.1870918,88188.0,88187.0,0.61253813]
[1742836200437,0.1870918,88188.0,88187.0,0.61153813]
[1742836200743,0.1870918,88188.0,88187.0,0.61253813]
[1742836201537,0.1870918,88188.0,88187.0,0.61251687]
[1742836202539,0.1870918,88188.0,88187.0,0.61235871]
[1742836203531,0.1870918,88188.0,88187.0,0.59744399]
[1742836204432,0.1870918,88188.0,88187.0,0.59644399]
[1742836204632,0.1870918,88188.0,88187.0,0.59744399]
[1742836206941,0.0737,88188.0,88187.0,0.59744399]
[1742836207145,0.1870918,88188.0,88187.0,0.59744399]
[1742836207640,0.1870918,88188.0,88187.0,0.61240043]
[1742836208543,0.0737,88188.0,88187.0,0.61240043]
[1742836208745,0.1870918,88188.0,88187.0,0.61240043]
[1742836209042,0.1870918,88188.0,88187.0,0.59744399]
[1742836209445,0.05686126,88196.0,88192.0,0.0566929]
[1742836209644,0.05686126,88196.0,88195.0,0.3608]
[1742836209847,0.00017016,88196.0,88195.0,0.6291028]
[1742836210146,0.0344,88209.0,88203.0,0.1133714]
[1742836210147,0.0566856,88204.0,88203.0,0.1133714]
[1742836210335,0.1700581,88204.0,88203.0,0.6131714]
[1742836210540,0.1700581,88204.0,88203.0,0.4998]
[1742836210847,0.1700581,88204.0,88203.0,0.4654]
[1742836211345,0.1700581,88204.0,88203.0,0.59016891]
[1742836211841,0.1730581,88204.0,88203.0,0.59016891]
[1742836212044,0.1760581,88204.0,88203.0,0.59016891]
[1742836212845,0.1760581,88204.0,88203.0,0.47679641]
[1742836213043,0.1760581,88204.0,88203.0,0.59016891]
[1742836214549,0.28943228,88204.0,88203.0,0.1046]
[1742836214744,0.28943228,88204.0,88196.0,0.20363279]
[1742836214745,0.1133802,88197.0,88196.0,0.20363279]
[1742836214936,0.1145402,88197.0,88196.0,0.21479279]
[1742836215447,0.26151438,88197.0,88196.0,0.21479279]
[1742836215650,0.26151438,88197.0,88196.0,0.01116]
[1742836215838,0.26151438,88197.0,88196.0,0.01]
[1742836216149,0.26151438,88197.0,88196.0,0.04436]
[1742836216440,0.27263804,88197.0,88196.0,0.01116]
[1742836216646,0.27263804,88197.0,88196.0,0.01]
[1742836217047,0.27363804,88197.0,88196.0,0.01]
[1742836217646,0.27363804,88197.0,88187.0,0.06512709]
[1742836217647,0.0566969,88187.0,88180.0,0.20363279]
[1742836217945,0.1133969,88184.0,88183.0,0.0332]
[1742836218150,0.1145569,88184.0,88183.0,0.05436]
[1742836218338,0.1464569,88184.0,88183.0,0.05436]
[1742836218541,0.1464569,88184.0,88183.0,0.2003582]
[1742836218738,0.1464569,88184.0,88183.0,0.20899831]
[1742836218943,0.25985679,88184.0,88183.0,0.20899831]
[1742836219252,0.22795679,88184.0,88183.0,0.20899831]
[1742836220644,0.25885679,88184.0,88183.0,0.20899831]
[1742836221449,0.25885679,88184.0,88183.0,0.09760011]
[1742836221653,0.25885679,88184.0,88183.0,0.09960011]
[1742836221953,0.22795679,88184.0,88183.0,0.09960011]
[1742836222941,0.22795679,88184.0,88183.0,0.21299831]
[1742836223948,0.26175679,88184.0,88183.0,0.21299831]
[1742836224852,0.22795679,88184.0,88183.0,0.21299831]
[1742836226759,0.25875679,88184.0,88183.0,0.21299831]
[1742836227952,0.22795679,88184.0,88183.0,0.21299831]
[1742836228659,0.00116,88184.0,88183.0,0.21299831]
[1742836228861,0.1133949,88186.0,88185.0,0.0566978]
[1742836229052,0.11459491,88186.0,88185.0,0.4486978]
[1742836229253,0.2279948,88186.0,88185.0,0.4486978]
[1742836229660,0.2279948,88186.0,88185.0,0.392]
[1742836229862,0.2605948,88186.0,88185.0,0.5053957]
[1742836230062,0.2605948,88186.0,88185.0,0.5063957]
[1742836231256,0.2605948,88186.0,88185.0,0.4963957]
[1742836231452,0.2605948,88186.0,88185.0,0.5083957]
[1742836232468,0.2605948,88186.0,88185.0,0.395]
[1742836233173,0.2605948,88186.0,88185.0,0.5083957]
[1742836233962,0.2279948,88186.0,88185.0,0.5083957]
[1742836234158,0.1145999,88186.0,88185.0,0.5083957]
[1742836235870,0.2608943,88186.0,88185.0,0.5083957]
[1742836236771,0.2279943,88186.0,88185.0,0.5083957]
[1742836237570,0.2608943,88186.0,88185.0,0.5083957]
[1742836238569,0.2608943,88186.0,88185.0,0.395]
[1742836238873,0.2917943,88186.0,88185.0,0.5083957]
[1742836239074,0.2608943,88186.0,88185.0,0.5083957]
[1742836243373,0.2608943,88186.0,88185.0,0.5397957]
[1742836243578,0.2608943,88186.0,88185.0,0.5725957]
[1742836243972,0.2279943,88186.0,88185.0,0.5725957]
[1742836244168,0.2610943,88186.0,88185.0,0.4592]
[1742836244369,0.2610943,88186.0,88185.0,0.5725957]
[1742836245972,0.2279943,88186.0,88185.0,0.5725957]
[1742836246468,0.2598943,88186.0,88185.0,0.5725957]
[1742836246669,0.2598943,88186.0,88185.0,0.4592]
[1742836247069,0.2931943,88186.0,88185.0,0.4592]
[1742836247271,0.2931943,88186.0,88185.0,0.5725957]
[1742836248178,0.2598943,88186.0,88185.0,0.5725957]
[1742836248376,0.2598943,88186.0,88185.0,0.4592]
[1742836248580,0.2931943,88186.0,88185.0,0.4592]
[1742836249681,0.2598943,88186.0,88185.0,0.5725957]
[1742836250285,0.2598943,88186.0,88185.0,0.4592]
[1742836250469,0.2598943,88186.0,88185.0,0.5725957]
[1742836250674,0.2903943,88186.0,88185.0,0.5725957]
[1742836251074,0.2903943,88186.0,88185.0,0.4592]
[1742836251669,0.2903943,88186.0,88185.0,0.5725957]
[1742836252274,0.2903943,88186.0,88185.0,0.4592]
[1742836252672,0.2903943,88186.0,88185.0,0.5725957]
[1742836253891,0.2903943,88186.0,88185.0,0.4592]
[1742836254185,0.2903943,88186.0,88185.0,0.5725957]
[1742836254879,0.2903943,88186.0,88185.0,0.4592]
[1742836255780,0.2598943,88186.0,88185.0,0.5725957]
[1742836255980,0.2598943,88186.0,88185.0,0.4592]
[1742836256884,0.2598943,88186.0,88185.0,0.5725957]
[1742836257488,0.2598943,88186.0,88185.0,0.4592]
[1742836257788,0.2932943,88186.0,88185.0,0.4592]
[1742836257981,0.2932943,88186.0,88185.0,0.5725957]
[1742836258181,0.2279943,88186.0,88185.0,0.5725957]
[1742836260081,0.1145999,88186.0,88185.0,0.5725957]
[1742836260284,0.1700677,88200.0,88197.0,0.0566893]
[1742836260588,0.3608,88223.0,88215.0,0.1133571]
[1742836260788,0.0570679,88232.0,88229.0,0.1133391]
[1742836261089,0.0004,88232.0,88229.0,0.1548591]
[1742836261286,0.11435791,88230.0,88229.0,0.1548591]
[1742836261990,0.11435791,88230.0,88229.0,0.04152]
[1742836261991,0.22769868,88230.0,88229.0,0.04152]
[1742836262195,0.22769868,88230.0,88229.0,0.07462]
[1742836262488,0.23169868,88230.0,88229.0,0.07462]
[1742836262688,0.29669868,88230.0,88229.0,0.07462]
[1742836262892,0.29669868,88230.0,88229.0,0.08292389]
[1742836263083,0.29669868,88230.0,88229.0,0.04152]
[1742836263482,0.29969868,88230.0,88229.0,0.04152]
[1742836263683,0.31095634,88230.0,88229.0,0.03152]
[1742836264490,0.67175634,88230.0,88229.0,0.03152]
[1742836264692,0.1133481,88222.0,88221.0,0.20380285]
[1742836264893,0.1133481,88222.0,88221.0,0.20536285]
[1742836265191,0.1133481,88222.0,88221.0,0.20688285]
[1742836265386,0.22668887,88222.0,88221.0,0.20532285]
[1742836265582,0.29158887,88222.0,88221.0,0.20532285]
[1742836266089,0.29158887,88222.0,88221.0,0.00169006]
[1742836266691,0.29258887,88222.0,88221.0,0.00017006]
[1742836267192,0.29258887,88222.0,88221.0,0.00177006]
[1742836267193,0.29458887,88222.0,88221.0,0.00177006]
[1742836267578,0.29458887,88222.0,88221.0,0.00017006]
[1742836268581,0.65538887,88222.0,88221.0,6e-08]
[1742836268787,0.1133648,88209.0,88208.0,0.3608]
[1742836268981,0.1133648,88209.0,88208.0,0.38232]
[1742836269490,0.22671585,88209.0,88208.0,0.38232]
[1742836269693,0.11335105,88209.0,88208.0,0.4956861]
[1742836269893,0.1700243,88221.0,88220.0,0.1133494]
[1742836270098,0.1133519,88219.0,88218.0,0.0566763]
[1742836270298,0.1133519,88219.0,88218.0,0.4689963]
[1742836270485,0.1133519,88219.0,88218.0,0.41232]
[1742836270890,0.2267068,88219.0,88218.0,0.05152]
[1742836271090,0.2267068,88219.0,88218.0,0.41232]
[1742836271391,0.2603068,88219.0,88218.0,0.41232]
[1742836271694,0.2287068,88219.0,88218.0,0.5256732]
[1742836272193,0.2287068,88219.0,88218.0,0.5587732]
[1742836273692,0.1143519,88219.0,88218.0,0.5587732]
[1742836273896,0.1163519,88219.0,88218.0,0.5587732]
[1742836274400,0.003,88219.0,88218.0,0.5587732]
[1742836274994,0.1133435,88226.0,88225.0,0.0566715]
[1742836275193,0.1133435,88226.0,88225.0,0.19152]
[1742836275598,0.2266984,88226.0,88225.0,0.19152]
[1742836276105,0.2584984,88226.0,88225.0,0.19152]
[1742836276400,0.2901984,88226.0,88225.0,0.19152]
[1742836277208,0.2921984,88226.0,88225.0,0.19152]
[1742836278319,0.2921984,88226.0,88225.0,0.18152]
[1742836279714,0.2921984,88226.0,88225.0,0.01152]
[1742836283613,0.2921984,88226.0,88225.0,0.00152]
[1742836283815,0.2921984,88226.0,88225.0,0.01152]
[1742836284316,0.6529984,88226.0,88225.0,0.01152]
[1742836284518,0.6849984,88226.0,88225.0,0.01152]
[1742836285821,0.6849984,88226.0,88225.0,0.01]
[1742836287610,0.1133455,88224.0,88223.0,0.0331]
[1742836287810,0.1133455,88224.0,88223.0,0.0531]
[1742836288026,0.1793455,88224.0,88223.0,0.0531]
[1742836288416,0.29269141,88224.0,88223.0,0.0531]
[1742836288822,0.29469141,88224.0,88223.0,0.0531]
[1742836291132,0.29469141,88224.0,88217.0,0.00017006]
[1742836291133,0.1133532,88218.0,88217.0,0.00017006]
[1742836291322,0.1133622,88211.0,88210.0,0.0332]
[1742836291629,0.1133622,88211.0,88210.0,0.04472]
[1742836291836,0.32282738,88211.0,88210.0,0.01]
[1742836292130,0.1133687,88206.0,88205.0,0.032]
[1742836292322,0.4741687,88206.0,88205.0,0.052]
[1742836292629,0.5380687,88206.0,88205.0,0.052]
[1742836292828,0.65144031,88206.0,88205.0,0.052]
[1742836294334,0.66301902,88206.0,88205.0,0.052]
[1742836294640,0.58754031,88206.0,88205.0,0.052]
[1742836294834,0.58754031,88206.0,88205.0,0.1653699]
[1742836295029,0.58754031,88206.0,88205.0,0.1678899]
[1742836295429,0.58754031,88206.0,88205.0,0.054]
[1742836295631,0.65254031,88206.0,88205.0,0.055]
[1742836298240,0.65254031,88206.0,88205.0,0.054]
[1742836299546,0.65254031,88206.0,88205.0,0.022]
[1742836300048,0.65254031,88206.0,88205.0,0.002]
[1742836303438,0.1133764,88200.0,88199.0,0.0303]
[1742836303929,0.2097764,88200.0,88199.0,0.0303]
[1742836304134,0.32314801,88200.0,88199.0,0.0303]
[1742836304737,0.32314801,88200.0,88199.0,0.0323]
[1742836305033,0.29104801,88200.0,88199.0,0.0323]
[1742836306050,0.40408801,88200.0,88199.0,0.0343]
[1742836308036,0.41269759,88200.0,88199.0,0.0343]
[1742836309547,0.29965759,88200.0,88199.0,0.0343]
[1742836309749,0.41269759,88200.0,88199.0,0.0343]
[1742836309957,0.33978801,88200.0,88199.0,0.0443]
[1742836310642,0.40028801,88200.0,88199.0,0.0443]
[1742836311350,0.40865515,88200.0,88199.0,0.0443]
[1742836311649,0.1133867,88192.0,88184.0,0.1133969]
[1742836311849,0.1133867,88192.0,88191.0,0.01201356]
[1742836312047,0.1741867,88192.0,88191.0,0.01045356]
[1742836312353,0.28756602,88192.0,88191.0,0.01045356]
[1742836312742,0.1133969,88184.0,88183.0,0.00017006]
[1742836312945,0.1133969,88184.0,88183.0,0.05017006]
[1742836313147,0.1741969,88184.0,88183.0,0.05017006]
[1742836313442,0.28758651,88184.0,88183.0,0.05017006]
[1742836314150,0.28758651,88184.0,88183.0,0.05617006]
[1742836314454,0.28758651,88184.0,88183.0,0.05777006]
[1742836314945,0.28758651,88184.0,88183.0,0.05617006]
[1742836315246,0.28758651,88184.0,88183.0,0.06269006]
[1742836315448,0.28758651,88184.0,88183.0,0.06117006]
[1742836315852,0.28758651,88184.0,88183.0,0.05517006]
[1742836316746,0.28758651,88184.0,88183.0,0.00517006]
[1742836320451,0.28758651,88184.0,88183.0,0.01517006]
[1742836320648,0.40062651,88184.0,88183.0,0.01517006]
[1742836323458,0.22678651,88184.0,88183.0,0.13856826]